[Event "Slovakian-ch Youth 2022"]
[Site "Lubovna"]
[Date "2022.05.22"]
[Round "1.10"]
[White "Petrek, Dominik"]
[Black "Kostura, Daniel"]
[Result "1-0"]
[ECO "E16"]
[WhiteElo "2110"]
[BlackElo "1510"]
[Annotator "TA"]
[PlyCount "37"]
[EventDate "2022.05.22"]
[EventCountry "SVK"]
[SourceTitle "playchess.com"]
[Source "ChessBase"]
[SourceQuality "1"]
[TimeControl "40/5400+30:1800+30"]

{[%evp 12,37,9,7,0,2,2,0,35,0,0,5,26,30,47,28,92,83,168,149,161,158,342,313,280,260,894,909]} 1. Nf3 {[%emt 0:00:21]} Nf6 {[%emt 0:00:27]} 2. c4 {[%emt 0:00:14]} e6 {[%emt 0:00:08]} 3. d4 {[%emt 0:00:07]} Bb4+ {[%emt 0:00:45]} 4. Nbd2 {[%emt 0:00:17][%cal Bb1d2,Bd2b3,Bb3d4,Bd4b5][%mdl 32]} b6 {[%emt 0:00:53]} 5. g3 {[%emt 0:00:35]} Bb7 {[%emt 0:00:34]} 6. Bg2 {[%emt 0:00:11]} O-O {[%emt 0:01:27]} 7. O-O {[%emt 0:00:48]} c5 {[%emt 0:01:57] E16: Queen's Indian: 4 g3 Bb7 5 Bg2 Bb4+.} 8. Nb3 $1 {[%emt 0:03:17] next a3 is good for White.} cxd4 {[%emt 0:02:50]} 9. Nbxd4 {[%emt 0:00:49] [#]} Qc7 $146 {[%emt 0:04:10] The position is equal.} ({Predecessor:} 9... a6 10. Qb3 Be7 11. Rd1 d6 12. h3 Nbd7 13. Qe3 Qc7 14. b3 Rfe8 15. Bb2 Rac8 {0-1 (27) Pakleza,Z (2501)-Jakubowski,K (2459) Chess.com INT 2021}) 10. a3 {[%emt 0:08:31]} Be7 {[%emt 0:05:05]} 11. b3 {[%emt 0:04:17]} Ne4 {[%emt 0:01:43]} 12. Bb2 $36 {[%emt 0:05:26][%mdl 2048] White has the initiative.} f5 {[%emt 0:02:26]} 13. Rc1 {[%emt 0:03:44]} Bf6 {[%emt 0:05:24]} (13... a6 $11 {keeps the balance.}) 14. Nb5 $16 {[%emt 0:04:16]} Qc6 {[%emt 0:01:10]} (14... Qd8 $16 15. Bxf6 gxf6) 15. Bxf6 $18 {[%emt 0:04:04]} Nxf6 {[%emt 0:05:32]} 16. Nd6 {[%emt 0:03:51] Hoping for Nh4.} Rd8 $2 {[%emt 0:06:31] [#]} (16... Qc7 $16 17. Nxb7 Qxb7) 17. b4 {[%emt 0:13:59]} Ne4 {[%emt 0:04:26]} 18. Nxe4 {[%emt 0:00:30]} Qxe4 {[%emt 0:01:20]} (18... fxe4 19. Ng5 Qc7 20. Nxe4 (20. Bxe4 Bxe4 21. Nxe4 Nc6 $18) 20... h6) 19. Nh4 {[%emt 0:00:34] Weighted Error Value: White=0.08 (flawless) /Black=0.40} 1-0

[Event "Slovakian-ch Youth 2022"]
[Site "Lubovna"]
[Date "2022.05.21"]
[Round "1.10"]
[White "Toth, Marton"]
[Black "Gollner, Martin"]
[Result "0-1"]
[ECO "A56"]
[WhiteElo "1849"]
[BlackElo "1585"]
[Annotator "NA COMBH"]
[PlyCount "92"]
[EventDate "2022.05.22"]
[EventCountry "SVK"]
[SourceTitle "playchess.com"]
[Source "ChessBase"]
[SourceQuality "1"]
[TimeControl "40/5400+30:1800+30"]

1. d4 {[%emt 0:00:33]} Nf6 {[%emt 0:10:12]} 2. c4 {[%emt 0:00:05]} c5 {[%emt 0:00:04]} 3. e3 {[%emt 0:02:11]} cxd4 {[%emt 0:00:47]} 4. exd4 {[%emt 0:00:19]} d5 {[%emt 0:00:37]} 5. Nf3 {[%emt 0:01:15]} Nc6 {[%emt 0:01:33]} 6. Nc3 {[%emt 0:01:00]} Bg4 {[%emt 0:05:06]} 7. cxd5 {[%emt 0:01:58]} Bxf3 {[%emt 0:05:48]} 8. Qxf3 {[%emt 0:03:14]} Nxd4 {[%emt 0:00:13]} 9. Qd3 {[%emt 0:04:09]} e5 {[%emt 0:00:22]} 10. Be3 {[%emt 0:08:15]} Bc5 {[%emt 0:10:34]} 11. Bxd4 {[%emt 0:01:16]} Bxd4 {[%emt 0:05:00]} 12. Qb5+ {[%emt 0:05:43]} Qd7 {[%emt 0:00:33]} 13. Qxd7+ {[%emt 0:01:02]} Kxd7 {[%emt 0:01:53]} 14. Nb5 {[%emt 0:06:26]} Bb6 {[%emt 0:01:13]} 15. g3 {[%emt 0:11:13]} Rac8 {[%emt 0:16:25]} 16. Bh3+ {[%emt 0:04:39]} Ke7 {[%emt 0:00:16]} 17. d6+ {[%emt 0:00:37]} Kd8 {[%emt 0:00:06]} 18. Bxc8 {[%emt 0:01:50]} Kxc8 {[%emt 0:00:03]} 19. Rc1+ {[%emt 0:00:23]} Kd7 {[%emt 0:00:05]} 20. Nc3 {[%emt 0:00:51]} Kxd6 {[%emt 0:01:08]} 21. O-O {[%emt 0:01:18]} h5 {[%emt 0:02:20]} 22. h3 {[%emt 0:08:20]} Nh7 {[%emt 0:07:21]} 23. Rfd1+ {[%emt 0:02:39]} Ke6 {[%emt 0:00:29]} 24. Ne4 {[%emt 0:01:02]} f5 {[%emt 0:01:41]} 25. Nc5+ {[%emt 0:01:43]} Kf6 {[%emt 0:02:28]} 26. Rd6+ {[%emt 0:01:24]} Kf7 {[%emt 0:00:12]} 27. Rd7+ {[%emt 0:00:57]} Kg6 {[%emt 0:00:21]} 28. Nxb7 {[%emt 0:02:25]} Nf6 {[%emt 0:01:28]} 29. Rc6 {[%emt 0:03:32]} h4 {[%emt 0:04:05]} 30. Kg2 {[%emt 0:06:51]} hxg3 {[%emt 0:00:22]} 31. fxg3 {[%emt 0:00:07]} Rb8 {[%emt 0:04:14]} 32. Re7 {[%emt 0:04:29]} e4 {[%emt 0:08:47]} 33. Nd6 {[%emt 0:02:28]} e3 {[%emt 0:02:18]} 34. Nc4 {[%emt 0:00:32]} Bd4 {[%emt 0:01:55]} 35. Nxe3 {[%emt 0:01:06]} Rxb2+ {[%emt 0:00:33]} 36. Rc2 {[%emt 0:00:45]} Rb5 {[%emt 0:01:31]} 37. Rc6 {[%emt 0:02:54]} Ra5 {[%emt 0:01:44]} 38. a3 {[%emt 0:01:08]} Rxa3 {[%emt 0:00:53]} 39. Nc2 {[%emt 0:02:40]} Ra2 {[%emt 0:00:23]} 40. Kf3 {[%emt 0:02:10]} Bb6 {[%emt 0:00:13]} 41. Ne3 {[%emt 0:04:58]} Bd4 {[%emt 0:07:24]} 42. Rd7 {[%emt 0:07:48]} Bb6 {[%emt 0:11:00]} 43. g4 {[%emt 0:01:57]} f4 {[%emt 0:09:38]} 44. Nd1 {[%emt 0:06:09]} Ra3+ {[%emt 0:03:28]} 45. Rc3 {[%emt 0:03:59]} Rxc3+ {[%emt 0:00:06]} 46. Nxc3 {[%emt 0:00:46]} Nxd7 {[%emt 0:00:02]} 0-1

[Event "Slovakian-ch Youth 2022"]
[Site "Lubovna"]
[Date "2022.05.21"]
[Round "1.11"]
[White "Pongo, Aron"]
[Black "Kurimsky, Kristian"]
[Result "1-0"]
[ECO "D15"]
[WhiteElo "1566"]
[BlackElo "1006"]
[Annotator "NA COMBH"]
[PlyCount "71"]
[EventDate "2022.05.22"]
[EventCountry "SVK"]
[SourceTitle "playchess.com"]
[Source "ChessBase"]
[SourceQuality "1"]
[TimeControl "40/5400+30:1800+30"]

1. d4 {[%emt 0:00:03]} d5 {[%emt 0:00:25]} 2. c4 {[%emt 0:00:01]} c6 {[%emt 0:00:34]} 3. Nc3 {[%emt 0:00:03]} Nf6 {[%emt 0:00:40]} 4. Nf3 {[%emt 0:00:02]} Bf5 {[%emt 0:01:00]} 5. cxd5 {[%emt 0:00:18]} cxd5 {[%emt 0:00:23]} 6. Qb3 {[%emt 0:00:28]} e6 {[%emt 0:00:49]} 7. Qxb7 {[%emt 0:01:56]} Nbd7 {[%emt 0:03:25]} 8. Bf4 {[%emt 0:01:24]} Be7 {[%emt 0:03:07]} 9. Bc7 {[%emt 0:04:45]} Qc8 {[%emt 0:02:04]} 10. Qxc8+ {[%emt 0:00:49]} Rxc8 {[%emt 0:00:13]} 11. Bf4 {[%emt 0:01:41]} O-O {[%emt 0:02:52]} 12. Nh4 {[%emt 0:15:24]} Bb4 {[%emt 0:08:54]} 13. Nxf5 {[%emt 0:03:51]} exf5 {[%emt 0:02:02]} 14. Bd2 {[%emt 0:00:44]} Bxc3 {[%emt 0:02:01]} 15. Bxc3 {[%emt 0:04:41]} Ne4 {[%emt 0:02:28]} 16. Rc1 {[%emt 0:00:43]} Nxc3 {[%emt 0:00:22]} 17. Rxc3 {[%emt 0:00:12]} Rxc3 {[%emt 0:00:07]} 18. bxc3 {[%emt 0:00:08]} Rb8 {[%emt 0:00:03]} 19. g3 {[%emt 0:10:18]} Rb1+ {[%emt 0:02:08]} 20. Kd2 {[%emt 0:00:04]} Rb2+ {[%emt 0:00:43]} 21. Kd3 {[%emt 0:00:27]} Rxa2 {[%emt 0:00:35]} 22. Bg2 {[%emt 0:00:08]} a5 {[%emt 0:00:49]} 23. Bxd5 {[%emt 0:01:25]} Ra3 {[%emt 0:02:02]} 24. Rb1 {[%emt 0:01:22]} h5 {[%emt 0:02:47]} 25. Rb7 {[%emt 0:00:54]} Nf6 {[%emt 0:02:00]} 26. Bxf7+ {[%emt 0:00:29]} Kf8 {[%emt 0:00:50]} 27. f3 {[%emt 0:01:08]} a4 {[%emt 0:00:41]} 28. Ra7 {[%emt 0:00:37]} Ra1 {[%emt 0:01:08]} 29. c4 {[%emt 0:07:40]} a3 {[%emt 0:00:10]} 30. c5 {[%emt 0:02:07]} g5 {[%emt 0:00:25]} 31. c6 {[%emt 0:00:43]} Rh1 {[%emt 0:01:20]} 32. c7 {[%emt 0:01:16]} Rc1 {[%emt 0:01:11]} 33. Be6 {[%emt 0:00:47]} h4 {[%emt 0:01:24]} 34. c8=Q+ {[%emt 0:00:14]} Rxc8 {[%emt 0:00:44]} 35. Bxc8 {[%emt 0:00:02]} h3 {[%emt 0:00:28]} 36. Bxf5 {[%emt 0:00:19]} 1-0

[Event "Slovakian-ch Youth 2022"]
[Site "Lubovna"]
[Date "2022.05.22"]
[Round "1.11"]
[White "Chovanec, Adrian"]
[Black "Vadila, Ondrej"]
[Result "0-1"]
[ECO "B50"]
[WhiteElo "1498"]
[BlackElo "2082"]
[Annotator "TA"]
[PlyCount "73"]
[EventDate "2022.05.22"]
[EventCountry "SVK"]
[SourceTitle "playchess.com"]
[Source "ChessBase"]
[SourceQuality "1"]
[TimeControl "40/5400+30:1800+30"]

{[%evp 13,73,0,10,-7,17,2,0,-7,-5,-7,0,-35,-30,-36,-20,-21,-41,-52,-47,-73,-80,-83,-65,-118,-75,-72,-67,-65,-61,-67,-36,-48,-37,-67,-58,-52,-76,-174,-177,-161,-183,-200,-198,-348,-401,-368,-369,-480,-471,-752,-742,-974,-918,-12811,-900,-12839,-12839,-29987,-29988,-29994,-29995,-29998]} 1. e4 {[%emt 0:00:20]} c5 {[%emt 0:01:23]} 2. Nf3 {[%emt 0:00:19]} g6 {[%emt 0:00:08]} 3. Bc4 {[%emt 0:00:29]} Bg7 {[%emt 0:00:20]} 4. d3 {[%emt 0:00:53]} Nc6 {[%emt 0:00:16]} 5. c3 {[%emt 0:00:59]} d6 {[%emt 0:00:47]} 6. h3 {[%emt 0:00:33]} Nf6 {[%emt 0:00:24]} 7. O-O {[%emt 0:00:57]} O-O {[%emt 0:00:20]} 8. Be3 {[%emt 0:02:07] B50: Sicilian: 2...d6, Miscellaneous.} a6 {[%emt 0:03:45]} 9. a3 {[%emt 0:02:35]} b5 {[%emt 0:06:34]} 10. Bb3 {[%emt 0:01:55] The position is equal.} Bb7 {[%emt 0:04:15] [#]} ({Don't take} 10... c4 11. dxc4 Na5 12. cxb5 $14) 11. Qe2 $146 {[%emt 0:07:26]} ({Predecessor:} 11. Nbd2 Qc7 12. Qe2 e5 13. Rac1 Nh5 14. Bd5 Ne7 15. Bxb7 Qxb7 16. b4 Rac8 17. Nb3 cxb4 {0-1 (32) Diaz Mendoza,E (1641)-Amador Garcia,I (1759) Las Palmas 2017}) 11... Na5 {[%emt 0:06:17]} 12. Ba2 {[%emt 0:01:13]} c4 $1 {[%emt 0:03:05]} 13. Nbd2 {[%emt 0:04:04][%cal Rd3c4]} cxd3 {[%emt 0:02:53]} 14. Qxd3 {[%emt 0:01:02]} Qc7 {[%emt 0:01:35]} 15. b4 {[%emt 0:01:09]} Nc4 {[%emt 0:00:28]} 16. Bxc4 {[%emt 0:02:41]} bxc4 {[%emt 0:00:13]} 17. Qc2 {[%emt 0:08:50]} e5 {[%emt 0:00:51]} 18. Bg5 {[%emt 0:02:12]} (18. Rad1 $15) 18... d5 {[%emt 0:04:08][%cal Rf6e4]} 19. Bxf6 {[%emt 0:01:02]} Bxf6 {[%emt 0:00:06]} 20. Rad1 {[%emt 0:03:18]} Rad8 {[%emt 0:02:13]} 21. Rfe1 {[%emt 0:05:08]} Rfe8 {[%emt 0:05:13]} 22. exd5 {[%emt 0:07:41]} Bxd5 {[%emt 0:02:45]} 23. Ne4 {[%emt 0:01:40]} Bg7 {[%emt 0:02:21]} 24. Qa4 {[%emt 0:04:37][%cal Od1d5] [#] Hoping for Rxd5!} Bxe4 {[%emt 0:08:07]} 25. Rxd8 {[%emt 0:02:03]} (25. Rxe4 $17 Rxd1+ 26. Qxd1) 25... Rxd8 $19 {[%emt 0:00:58]} 26. Rxe4 {[%emt 0:00:24]} f5 {[%emt 0:00:25]} 27. Re1 {[%emt 0:02:29]} e4 {[%emt 0:10:49]} 28. Nd4 {[%emt 0:02:27]} (28. Ng5 $142 Qd6 29. b5 axb5 30. Qxb5) 28... Bxd4 {[%emt 0:06:57]} 29. cxd4 {[%emt 0:00:18]} Rxd4 {[%emt 0:01:15]} 30. Qxa6 {[%emt 0:02:28][%mdl 4096] Endgame [#] KQR-KQR} c3 $1 {[%emt 0:07:34]} 31. Qe6+ {[%emt 0:01:30]} (31. Qe2 $142 Rd2 32. Qe3) 31... Kg7 {[%emt 0:00:49] And now ...c2 would win.} 32. Qb3 {[%emt 0:00:24]} Rd2 {[%emt 0:04:24]} 33. Rc1 {[%emt 0:01:12]} c2 {[%emt 0:00:28] Strongly threatening ...Qf4.} 34. g3 {[%emt 0:01:09]} f4 {[%emt 0:03:45] ( -> ...fxg3)} 35. gxf4 {[%emt 0:02:59]} Qxf4 {[%emt 0:00:11]} 36. Rf1 {[%emt 0:04:06]} c1=Q {[%emt 0:00:14]} 37. Rxc1 {[%emt 0:02:11] Weighted Error Value: White=1.00/Black=0.04 (flawless)} 0-1

[Event "Slovakian-ch Youth 2022"]
[Site "Lubovna"]
[Date "2022.05.22"]
[Round "1.12"]
[White "Beres, Tomas"]
[Black "Mederly, Jan"]
[Result "1-0"]
[ECO "B01"]
[WhiteElo "2059"]
[BlackElo "1446"]
[Annotator "TA"]
[PlyCount "33"]
[EventDate "2022.05.22"]
[EventCountry "SVK"]
[SourceTitle "playchess.com"]
[Source "ChessBase"]
[SourceQuality "1"]
[TimeControl "40/5400+30:1800+30"]

{[%evp 9,33,43,47,33,39,27,106,101,79,114,124,-25,-27,-38,18,16,20,6,17,-50,160,150,106,120,916,882]} 1. e4 {[%emt 0:00:06]} d5 {[%emt 0:01:07]} 2. exd5 {[%emt 0:00:17]} Nf6 {[%emt 0:00:10]} 3. Bb5+ {[%emt 0:00:35]} Nbd7 {[%emt 0:00:32]} 4. c4 {[%emt 0:00:51]} e6 {[%emt 0:05:29]} 5. dxe6 {[%emt 0:02:43]} fxe6 {[%emt 0:00:08]} 6. d4 {[%emt 0:12:27] B01: Scandinavian Defence.} c6 {[%emt 0:12:41]} 7. Ba4 {[%emt 0:00:20] [#]} Bb4+ $146 {[%emt 0:11:57]} (7... e5 $1 $11 {remains equal.}) ({Predecessor:} 7... e5 8. Ne2 exd4 9. Nxd4 Nb6 10. Bb3 Bb4+ 11. Nc3 Bg4 12. f3 Qe7+ 13. Qe2 O-O-O 14. Qxe7 Bxe7 {1-0 (54) Faerber,D (2285)-Buecker,S (2291) Walldorf 2017}) 8. Nc3 {[%emt 0:14:47] White is better.} O-O {[%emt 0:01:00]} 9. Nge2 {[%emt 0:10:54]} Ng4 {[%emt 0:18:58] [#]} 10. Bf4 {[%emt 0:09:59] [#]} (10. O-O $1 $16) 10... Nxf2 $1 $11 {[%emt 0:04:09]} 11. Kxf2 {[%emt 0:00:09]} g5 {[%emt 0:02:51] [#]} ({Black should try} 11... e5 $1 $15 12. dxe5 g5) 12. Rf1 $1 {[%emt 0:03:42][%cal Of2g1] aiming for Kg1!} e5 {[%emt 0:04:56][%mdl 64] [#] ...exd4 is the strong threat. Pin} (12... gxf4 13. Kg1) 13. Kg1 $1 {[%emt 0:03:10]} exf4 {[%emt 0:02:03]} 14. Bc2 {[%emt 0:05:28]} (14. c5 $1 $11 Kh8 15. a3 Bxc3 16. Nxc3) 14... Nb6 $2 {[%emt 0:01:15]} (14... Nf6 $1 $15) 15. c5 $16 {[%emt 0:01:33]} Nd5 {[%emt 0:02:09]} 16. Nxd5 {[%emt 0:00:07]} Qxd5 {[%emt 0:00:29][%mdl 8192]} (16... cxd5 $16 17. a3 Ba5) 17. Bb3 {[%emt 0:00:09] Weighted Error Value: White=0.27 (precise) /Black=0.55} 1-0

[Event "Slovakian-ch Youth 2022"]
[Site "Lubovna"]
[Date "2022.05.21"]
[Round "1.12"]
[White "Gourlay, Martin B"]
[Black "Gay, Lukas"]
[Result "0-1"]
[ECO "B01"]
[WhiteElo "1911"]
[BlackElo "1480"]
[Annotator "TA"]
[PlyCount "64"]
[EventDate "2022.05.22"]
[EventCountry "SVK"]
[SourceTitle "playchess.com"]
[Source "ChessBase"]
[SourceQuality "1"]
[TimeControl "40/5400+30:1800+30"]

{[%evp 10,64,37,42,49,21,42,30,93,22,34,29,21,11,32,18,12,0,0,0,85,130,281,245,391,362,360,361,307,189,360,148,420,147,129,152,139,87,229,-1276,49,0,0,0,0,-29973,-29975,-29966,-29967,-29987,-29988,-29988,-29989,-29997,-29998,-29998,-29999]} 1. e4 {[%emt 0:00:26]} d5 {[%emt 0:00:56]} 2. exd5 {[%emt 0:00:49]} Nf6 {[%emt 0:00:43]} 3. Nf3 {[%emt 0:02:07]} Bg4 {[%emt 0:01:28]} 4. Be2 {[%emt 0:02:20]} Qxd5 {[%emt 0:02:30]} 5. Nc3 {[%emt 0:00:35]} Qa5 {[%emt 0:02:15]} 6. h3 {[%emt 0:01:08]} Bh5 {[%emt 0:00:59] B01: Scandinavian Defence.} 7. d3 {[%emt 0:01:07][%cal Ob2b4]} Nc6 {[%emt 0:01:04]} 8. Bd2 {[%emt 0:01:35] [#]} Qc5 $146 {[%emt 0:04:31]} (8... O-O-O $11 {remains equal.}) ({Predecessor:} 8... e6 9. O-O Bxf3 10. Bxf3 Qe5 11. Re1 Qd6 12. Nb5 Qd7 13. a3 a6 14. Nc3 Bd6 {1-0 (56) Sinnhoefer,L (1301)-Maul,M (1378) Verden 2016}) 9. Be3 {[%emt 0:01:39]} (9. d4 $1 $16 {[%cal Rd4c5]} Qd6 10. g4 (10. Nb5 Qd8 $14)) 9... Qd6 $11 {[%emt 0:00:53]} 10. a3 {[%emt 0:02:10]} a6 {[%emt 0:03:54]} 11. Qd2 {[%emt 0:00:45]} O-O-O {[%emt 0:02:41]} 12. Ng5 {[%emt 0:01:49]} Bg6 {[%emt 0:00:56]} 13. O-O $36 {[%emt 0:06:00][%mdl 2048] White is pushing.} h6 {[%emt 0:00:48]} 14. Nf3 {[%emt 0:00:28]} Bf5 {[%emt 0:02:10]} (14... e5 $11) 15. b4 $16 {[%emt 0:03:08][%cal Bb2b4,Bb4b5][%mdl 32] And now b5 would win.} g5 $2 {[%emt 0:00:46]} (15... e5 $16 {might work better.}) 16. b5 $1 $18 {[%emt 0:01:21]} Ne5 {[%emt 0:00:56]} (16... Nb8 $142 17. Rab1 Bg7) 17. bxa6 {[%emt 0:01:40]} bxa6 {[%emt 0:00:34]} 18. Nxe5 {[%emt 0:03:25]} Qxe5 {[%emt 0:00:15]} 19. d4 {[%emt 0:00:45]} Qd6 {[%emt 0:00:59]} (19... Qa5 {is a better defense.} 20. Ne4 Qxd2 21. Bxa6+ Kd7 22. Nc5+ (22. Nxd2 Nd5 $16) 22... Ke8 23. Bb5+ (23. Bxd2 Bg7 $16) 23... Nd7 24. Bxd2 Bg7) 20. Ra2 {[%emt 0:03:20]} (20. Na4 $18 Be4 21. Nc5 Qxc5 22. dxc5 Rxd2 23. Bxd2) 20... g4 $2 {[%emt 0:00:44][%mdl 8192]} (20... Kd7 $16) 21. hxg4 $2 {[%emt 0:01:24]} (21. Bf4 Qc6 22. Rb2 Bg7 $18) (21. Rb2 $18) 21... Nxg4 $16 {[%emt 0:00:28]} 22. Bxg4 {[%emt 0:00:12]} Bxg4 {[%emt 0:00:21]} 23. Rb2 $1 {[%emt 0:01:49] Strongly threatening Rfb1.} Bf3 {[%emt 0:06:52]} 24. Rfb1 $4 {[%emt 0:02:16][%mdl 8192]} (24. gxf3 $2 Rg8+ 25. Bg5 (25. Kh1 $2 Qf6 $19) 25... Rxg5+ 26. Qxg5 hxg5 $19) (24. Qd3 $18 Ba8 25. Rfb1) 24... Rg8 $2 {[%emt 0:01:20]} (24... Qg6 $1 $19 {[%csl Gf3][%cal Rg6g2]} 25. Rb8+ Kd7) 25. Rb8+ {[%emt 0:03:17]} (25. Qd3 $1 $14 {was preferrable.} Bxg2 26. Qf5+ Qe6 27. Rb8+ Kd7 28. Qxe6+ (28. Rxd8+ Kxd8 29. Rb8+ Kd7 $11) 28... fxe6 29. Rxd8+ Kxd8 30. Rb8+ Kd7 31. Rxf8 $1 Rxf8 32. Kxg2) 25... Kd7 $11 {[%emt 0:00:22] The board is on fire.} 26. Rxd8+ {[%emt 0:00:28]} Kxd8 {[%emt 0:00:13]} 27. Bf4 $2 {[%emt 0:02:37][%mdl 8192]} ({Much less strong is} 27. Rb8+ Kd7 28. Qd3 (28. Rxf8 Rxg2+ 29. Kf1 Qh2) 28... Bxg2 29. Rxf8 (29. Qf5+ Kc6 $17) 29... Be4+ 30. Rxg8 Bxd3 31. cxd3 Qxa3 $14) (27. Qd3 $11 Bxg2 28. Rb8+ Kd7 {[#]} 29. Rxf8 $1 (29. Qf5+ Kc6 $17) 29... Be4+ 30. Rxg8 Bxd3 31. cxd3) 27... Rxg2+ {[%emt 0:02:48] Black mates.} 28. Kf1 {[%emt 0:00:16] [#]} Rh2 $1 {[%emt 0:00:25][%cal Rh2h1][%mdl 512]} 29. Rb8+ {[%emt 0:02:00]} (29. Ne2 Rh1+) 29... Kd7 {[%emt 0:00:08][%cal Rh2h1]} 30. Bxh2 {[%emt 0:00:29]} Qxh2 {[%emt 0:00:22][%cal Rh2h1]} 31. Ne2 {[%emt 0:00:48]} Qh1+ {[%emt 0:00:08]} 32. Ng1 {[%emt 0:00:22]} Qg2+ {[%emt 0:00:04][%mdl 64] Deflection. Never resign too early!  Weighted Error Value: White=0.78/Black=0.88} 0-1

[Event "Slovakian-ch Youth 2022"]
[Site "Lubovna"]
[Date "2022.05.21"]
[Round "1.13"]
[White "Polomsky, Tomas"]
[Black "Horvath, Simon"]
[Result "1-0"]
[ECO "C65"]
[WhiteElo "1467"]
[BlackElo "1343"]
[Annotator "NA COMBH"]
[PlyCount "105"]
[EventDate "2022.05.22"]
[EventCountry "SVK"]
[SourceTitle "playchess.com"]
[Source "ChessBase"]
[SourceQuality "1"]
[TimeControl "40/5400+30:1800+30"]

1. e4 {[%emt 0:00:05]} e5 {[%emt 0:00:14]} 2. Nf3 {[%emt 0:00:29]} Nc6 {[%emt 0:00:19]} 3. Bb5 {[%emt 0:00:22]} Nf6 {[%emt 0:00:20]} 4. Bxc6 {[%emt 0:01:01]} dxc6 {[%emt 0:00:37]} 5. d3 {[%emt 0:01:15]} Bd6 {[%emt 0:01:49]} 6. Nbd2 {[%emt 0:01:26]} O-O {[%emt 0:00:46]} 7. Nc4 {[%emt 0:01:44]} Re8 {[%emt 0:02:11]} 8. Bg5 {[%emt 0:03:10]} h6 {[%emt 0:01:05]} 9. Bh4 {[%emt 0:02:43]} Bg4 {[%emt 0:04:36]} 10. Ne3 {[%emt 0:01:54]} Bxf3 {[%emt 0:03:04]} 11. Qxf3 {[%emt 0:01:40]} Be7 {[%emt 0:06:21]} 12. Nf5 {[%emt 0:01:51]} b5 {[%emt 0:10:36]} 13. O-O {[%emt 0:02:44]} a6 {[%emt 0:03:31]} 14. Qg3 {[%emt 0:01:25]} Nh5 {[%emt 0:00:32]} 15. Nxe7+ {[%emt 0:04:41]} Qxe7 {[%emt 0:01:32]} 16. Qg4 {[%emt 0:02:15]} Nf6 {[%emt 0:01:04]} 17. Qf5 {[%emt 0:01:16]} Qe6 {[%emt 0:02:10]} 18. f4 {[%emt 0:05:53]} Qxf5 {[%emt 0:00:30]} 19. exf5 {[%emt 0:00:02]} e4 {[%emt 0:01:59]} 20. Bxf6 {[%emt 0:01:01]} gxf6 {[%emt 0:00:27]} 21. dxe4 {[%emt 0:05:56]} Rxe4 {[%emt 0:00:18]} 22. Rad1 {[%emt 0:04:02]} Re2 {[%emt 0:01:01]} 23. Rf2 {[%emt 0:05:30]} Rxf2 {[%emt 0:00:17]} 24. Kxf2 {[%emt 0:00:01]} c5 {[%emt 0:02:21]} 25. Rd5 {[%emt 0:01:27]} c4 {[%emt 0:00:54]} 26. Rc5 {[%emt 0:00:40]} Rd8 {[%emt 0:02:07]} 27. Ke3 {[%emt 0:01:17]} Rc8 {[%emt 0:02:38]} 28. Rc6 {[%emt 0:04:13]} Re8+ {[%emt 0:00:56]} 29. Kd2 {[%emt 0:00:55]} Rd8+ {[%emt 0:00:44]} 30. Kc3 {[%emt 0:00:28]} Kg7 {[%emt 0:02:59]} 31. Rxa6 {[%emt 0:01:30]} Re8 {[%emt 0:00:26]} 32. Rc6 {[%emt 0:02:25]} Re2 {[%emt 0:00:22]} 33. Rxc7 {[%emt 0:02:53]} Rxg2 {[%emt 0:00:22]} 34. Rd7 {[%emt 0:01:25]} Rxh2 {[%emt 0:00:44]} 35. Rd2 {[%emt 0:00:23]} Rxd2 {[%emt 0:00:49]} 36. Kxd2 {[%emt 0:00:03]} h5 {[%emt 0:01:37]} 37. Ke3 {[%emt 0:00:12]} h4 {[%emt 0:01:39]} 38. Kf3 {[%emt 0:00:24]} Kh6 {[%emt 0:00:52]} 39. Kg4 {[%emt 0:00:20]} Kg7 {[%emt 0:01:20]} 40. Kxh4 {[%emt 0:00:39]} Kf8 {[%emt 0:00:27]} 41. b3 {[%emt 0:31:15]} c3 {[%emt 0:32:40]} 42. a4 {[%emt 0:01:17]} bxa4 {[%emt 0:00:08]} 43. bxa4 {[%emt 0:00:07]} Ke8 {[%emt 0:00:09]} 44. Kh5 {[%emt 0:01:20]} Kd7 {[%emt 0:00:30]} 45. Kh6 {[%emt 0:00:10]} Kc6 {[%emt 0:01:08]} 46. Kg7 {[%emt 0:00:02]} Kd5 {[%emt 0:01:10]} 47. a5 {[%emt 0:00:27]} Kc6 {[%emt 0:01:13]} 48. Kxf7 {[%emt 0:00:29]} Kb5 {[%emt 0:00:22]} 49. Kxf6 {[%emt 0:00:17]} Kxa5 {[%emt 0:00:07]} 50. Ke5 {[%emt 0:00:24]} Kb4 {[%emt 0:00:42]} 51. f6 {[%emt 0:00:24]} Ka3 {[%emt 0:00:28]} 52. Kd4 {[%emt 0:00:14]} Kb2 {[%emt 0:00:20]} 53. Kd3 {[%emt 0:00:10]} 1-0